[Event "*** Titled Tuesday Blitz"]
[Site "Chess.com"]
[Date "2020.04.21"]
[Round "4"]
[White "RaphaeI"]
[Black "SantoBlue"]
[Result "1-0"]
[WhiteElo "2660"]
[BlackElo "2816"]
[TimeControl "180+1"]
[EndTime "10:41:01 PDT"]
[Termination "RaphaeI won by resignation"]

1. Nf3 {[%clk 0:03:00.9]} 1... Nf6 {[%clk 0:02:59]} 2. c4 {[%clk 0:03:01]} 2...
e6 {[%clk 0:02:58.9]} 3. g3 {[%clk 0:02:58.7]} 3... b6 {[%clk 0:02:59.3]} 4. d4
{[%clk 0:02:58.5]} 4... Bb7 {[%clk 0:02:59.8]} 5. Bg2 {[%clk 0:02:58.9]} 5...
Be7 {[%clk 0:03:00.4]} 6. O-O {[%clk 0:02:59]} 6... O-O {[%clk 0:03:00.8]} 7. d5
{[%clk 0:02:57.7]} 7... exd5 {[%clk 0:03:00.6]} 8. Nh4 {[%clk 0:02:57.9]} 8...
c6 {[%clk 0:02:57.4]} 9. cxd5 {[%clk 0:02:58.2]} 9... Nxd5 {[%clk 0:02:58.3]}
10. Nf5 {[%clk 0:02:58.7]} 10... Nf6 {[%clk 0:02:51.7]} 11. e4 {[%clk
0:02:55.8]} 11... d5 {[%clk 0:02:51.7]} 12. Bf4 {[%clk 0:02:50.2]} 12... Bc8
{[%clk 0:02:44.2]} 13. Nxe7+ {[%clk 0:02:34.7]} 13... Qxe7 {[%clk 0:02:44.1]}
14. Nc3 {[%clk 0:02:35.4]} 14... Rd8 {[%clk 0:02:26.8]} 15. exd5 {[%clk
0:02:24]} 15... Nxd5 {[%clk 0:01:52.8]} 16. Nxd5 {[%clk 0:02:01]} 16... cxd5
{[%clk 0:01:52.6]} 17. Qh5 {[%clk 0:01:07.3]} 17... Be6 {[%clk 0:01:42.4]} 18.
Rfe1 {[%clk 0:01:04.3]} 18... Qd7 {[%clk 0:01:12.1]} 19. Rad1 {[%clk 0:00:40.5]}
19... Nc6 {[%clk 0:00:36.8]} 20. Bxd5 {[%clk 0:00:40.4]} 20... Bg4 {[%clk
0:00:36.3]} 21. Bxf7+ {[%clk 0:00:27.2]} 21... Qxf7 {[%clk 0:00:36.3]} 22. Qxg4
{[%clk 0:00:27.2]} 22... Nd4 {[%clk 0:00:33.8]} 23. Rd3 {[%clk 0:00:17.6]} 23...
h5 {[%clk 0:00:13.7]} 24. Qd1 {[%clk 0:00:16.5]} 24... Qd5 {[%clk 0:00:14.1]}
25. Ree3 {[%clk 0:00:13.8]} 25... Rac8 {[%clk 0:00:12.8]} 26. Be5 {[%clk
0:00:13.3]} 26... Ne2+ {[%clk 0:00:07.3]} 27. Kf1 {[%clk 0:00:07]} 27... Nd4
{[%clk 0:00:03.2]} 28. Bxd4 {[%clk 0:00:05.1]} 28... Qh1+ {[%clk 0:00:03.1]} 29.
Ke2 {[%clk 0:00:05.4]} 29... Qxh2 {[%clk 0:00:04]} 30. Bc3 {[%clk 0:00:04.7]}
30... Re8 {[%clk 0:00:04.2]} 31. Rxe8+ {[%clk 0:00:04.5]} 31... Rxe8+ {[%clk
0:00:05.1]} 32. Re3 {[%clk 0:00:05.2]} 32... Rf8 {[%clk 0:00:04.8]} 33. Qd5+
{[%clk 0:00:05.2]} 33... Kh7 {[%clk 0:00:04.5]} 34. Rf3 {[%clk 0:00:05.7]} 34...
Re8+ {[%clk 0:00:05]} 35. Kd2 {[%clk 0:00:05.8]} 35... Qh3 {[%clk 0:00:05.1]}
36. Qf5+ {[%clk 0:00:05.5]} 36... Qxf5 {[%clk 0:00:05.7]} 37. Rxf5 {[%clk
0:00:06.4]} 37... Kg6 {[%clk 0:00:06.6]} 38. Rf4 {[%clk 0:00:06.3]} 38... Rd8+
{[%clk 0:00:06.3]} 39. Ke2 {[%clk 0:00:06]} 39... Kh6 {[%clk 0:00:06.9]} 40. a4
{[%clk 0:00:06.2]} 40... g5 {[%clk 0:00:07.2]} 41. Rf6+ {[%clk 0:00:06.5]} 41...
Kh7 {[%clk 0:00:07.8]} 42. Rf7+ {[%clk 0:00:07.1]} 42... Kg6 {[%clk 0:00:08.7]}
43. Rxa7 {[%clk 0:00:07.7]} 43... Re8+ {[%clk 0:00:09.6]} 44. Kf1 {[%clk
0:00:08.1]} 44... h4 {[%clk 0:00:10.5]} 45. gxh4 {[%clk 0:00:07.4]} 45... gxh4
{[%clk 0:00:11.4]} 46. Kg2 {[%clk 0:00:08.1]} 46... Kf5 {[%clk 0:00:12.1]} 47.
Ra6 {[%clk 0:00:07.8]} 47... Kg4 {[%clk 0:00:11.9]} 48. Rxb6 {[%clk 0:00:07.6]}
48... h3+ {[%clk 0:00:12.8]} 49. Kh2 {[%clk 0:00:08]} 49... Rf8 {[%clk
0:00:13.4]} 50. Rg6+ {[%clk 0:00:08]} 50... Kh4 {[%clk 0:00:13.8]} 51. Rh6+
{[%clk 0:00:07.9]} 51... Kg4 {[%clk 0:00:14.4]} 52. Rxh3 {[%clk 0:00:07.8]}
52... Rxf2+ {[%clk 0:00:14.9]} 53. Kg1 {[%clk 0:00:08.2]} 53... Rc2 {[%clk
0:00:15.3]} 54. Rd3 {[%clk 0:00:08]} 54... Rc1+ {[%clk 0:00:16.2]} 55. Kf2
{[%clk 0:00:07.9]} 55... Ra1 {[%clk 0:00:17.1]} 56. a5 {[%clk 0:00:07.8]} 56...
Ra2 {[%clk 0:00:18]} 57. Ke3 {[%clk 0:00:07.7]} 57... Kf5 {[%clk 0:00:18.9]} 58.
Kd4 {[%clk 0:00:08]} 58... Ke6 {[%clk 0:00:19.4]} 59. Kc5 {[%clk 0:00:08.3]}
59... Kf5 {[%clk 0:00:20.3]} 60. Kb6 {[%clk 0:00:08.4]} 60... Ke4 {[%clk
0:00:21.2]} 61. Rd8 {[%clk 0:00:08.3]} 61... Ra1 {[%clk 0:00:20.4]} 62. a6
{[%clk 0:00:08.6]} 62... Rd1 {[%clk 0:00:20.7]} 63. Rxd1 {[%clk 0:00:07.6]} 1-0

[Event "*** Titled Tuesday Blitz"]
[Site "Chess.com"]
[Date "2020.04.21"]
[Round "4"]
[White "tacticthunder"]
[Black "SPEEDSKATER"]
[Result "0-1"]
[WhiteElo "2618"]
[BlackElo "2788"]
[TimeControl "180+1"]
[EndTime "10:41:04 PDT"]
[Termination "SPEEDSKATER won by resignation"]

1. e4 {[%clk 0:03:00.9]} 1... e6 {[%clk 0:02:56.2]} 2. d4 {[%clk 0:03:00.6]}
2... d5 {[%clk 0:02:54.9]} 3. Nc3 {[%clk 0:03:01]} 3... Bb4 {[%clk 0:02:54.2]}
4. e5 {[%clk 0:02:59.1]} 4... Ne7 {[%clk 0:02:53.8]} 5. Bd2 {[%clk 0:02:58.9]}
5... b6 {[%clk 0:02:53.1]} 6. Qg4 {[%clk 0:02:52.6]} 6... O-O {[%clk 0:02:50.9]}
7. h4 {[%clk 0:02:47.2]} 7... Bxc3 {[%clk 0:02:31.5]} 8. bxc3 {[%clk 0:02:36.8]}
8... Kh8 {[%clk 0:02:21.9]} 9. h5 {[%clk 0:02:30.7]} 9... h6 {[%clk 0:02:21.6]}
10. Rh3 {[%clk 0:01:52]} 10... Ba6 {[%clk 0:02:16.4]} 11. Bxa6 {[%clk
0:01:44.4]} 11... Nxa6 {[%clk 0:02:17.3]} 12. Nf3 {[%clk 0:01:13.7]} 12... Nf5
{[%clk 0:01:52.1]} 13. Qf4 {[%clk 0:01:02.9]} 13... f6 {[%clk 0:01:45.1]} 14. g4
{[%clk 0:00:53.1]} 14... Ne7 {[%clk 0:01:45.1]} 15. exf6 {[%clk 0:00:32.8]}
15... Rxf6 {[%clk 0:01:43.7]} 16. Qe3 {[%clk 0:00:28.5]} 16... Qg8 {[%clk
0:01:21.9]} 17. g5 {[%clk 0:00:27.4]} 17... Nf5 {[%clk 0:01:20.9]} 18. Qe5
{[%clk 0:00:25.6]} 18... Rff8 {[%clk 0:01:06.7]} 19. gxh6 {[%clk 0:00:22.9]}
19... Nb8 {[%clk 0:01:05.9]} 20. hxg7+ {[%clk 0:00:12.5]} 20... Qxg7 {[%clk
0:01:05]} 21. Qxg7+ {[%clk 0:00:11.6]} 21... Kxg7 {[%clk 0:01:05.9]} 22. Ne5
{[%clk 0:00:12.2]} 22... Ne7 {[%clk 0:00:58.7]} 23. Ke2 {[%clk 0:00:11.7]} 23...
Nbc6 {[%clk 0:00:58.1]} 24. Rg1+ {[%clk 0:00:11.6]} 24... Kh7 {[%clk 0:00:56.8]}
25. Rhg3 {[%clk 0:00:10.7]} 25... Rg8 {[%clk 0:00:52.7]} 26. Rxg8 {[%clk
0:00:07.8]} 26... Rxg8 {[%clk 0:00:53.6]} 27. Rxg8 {[%clk 0:00:07.8]} 27... Kxg8
{[%clk 0:00:54.5]} 28. Nxc6 {[%clk 0:00:08.1]} 28... Nxc6 {[%clk 0:00:54.3]} 29.
Bf4 {[%clk 0:00:09]} 29... Kh7 {[%clk 0:00:53.6]} 30. Bxc7 {[%clk 0:00:08.8]}
30... Kh6 {[%clk 0:00:53.6]} 31. Kd3 {[%clk 0:00:08.8]} 31... Kxh5 {[%clk
0:00:53.9]} 32. Bd6 {[%clk 0:00:08.6]} 32... Kg4 {[%clk 0:00:54]} 33. Ke3 {[%clk
0:00:07.1]} 33... Na5 {[%clk 0:00:53.5]} 34. f3+ {[%clk 0:00:07.4]} 34... Kf5
{[%clk 0:00:53.2]} 35. Bb8 {[%clk 0:00:06.9]} 35... Nc4+ {[%clk 0:00:52.5]} 36.
Ke2 {[%clk 0:00:06.1]} 36... a6 {[%clk 0:00:52.9]} 37. a4 {[%clk 0:00:06.3]}
37... Nb2 {[%clk 0:00:52.2]} 38. a5 {[%clk 0:00:05.2]} 38... bxa5 {[%clk
0:00:51.9]} 39. Kd2 {[%clk 0:00:05.4]} 39... a4 {[%clk 0:00:51.4]} 40. Kc1
{[%clk 0:00:05.5]} 40... Nc4 {[%clk 0:00:51.2]} 41. Kb1 {[%clk 0:00:05.5]} 41...
Kg5 {[%clk 0:00:51.4]} 42. Bg3 {[%clk 0:00:04.9]} 42... Kf5 {[%clk 0:00:41.5]}
43. Ka2 {[%clk 0:00:05.1]} 43... Kf6 {[%clk 0:00:41.6]} 44. Bh4+ {[%clk
0:00:04.2]} 44... Kf7 {[%clk 0:00:41.8]} 45. Bg3 {[%clk 0:00:05]} 45... Ke8
{[%clk 0:00:41.9]} 46. Bh4 {[%clk 0:00:05.2]} 46... Kd7 {[%clk 0:00:41.8]} 47.
Bg3 {[%clk 0:00:05.7]} 47... Kc6 {[%clk 0:00:42]} 48. Kb1 {[%clk 0:00:04.1]}
48... Nd2+ {[%clk 0:00:41.3]} 49. Kb2 {[%clk 0:00:03.9]} 49... Nxf3 {[%clk
0:00:41.2]} 50. Bf4 {[%clk 0:00:04.8]} 50... Nh4 {[%clk 0:00:38.8]} 51. Ka3
{[%clk 0:00:04]} 51... Kb5 {[%clk 0:00:38.4]} 52. c4+ {[%clk 0:00:03.4]} 52...
Kxc4 {[%clk 0:00:29.6]} 53. Kxa4 {[%clk 0:00:04.3]} 53... Kc3 {[%clk 0:00:30.2]}
54. Ka5 {[%clk 0:00:03.5]} 54... Kxc2 {[%clk 0:00:30.6]} 55. Be5 {[%clk
0:00:04.4]} 55... Nf3 {[%clk 0:00:29.8]} 56. Bf6 {[%clk 0:00:04.7]} 56... Kd3
{[%clk 0:00:29.8]} 57. Kxa6 {[%clk 0:00:05.2]} 57... Nxd4 {[%clk 0:00:29.9]} 58.
Kb6 {[%clk 0:00:06.1]} 58... Kc4 {[%clk 0:00:29.7]} 59. Kc7 {[%clk 0:00:05.6]}
59... Nf3 {[%clk 0:00:28.3]} 60. Kd6 {[%clk 0:00:05.6]} 60... e5 {[%clk
0:00:28.5]} 61. Ke6 {[%clk 0:00:04.3]} 61... e4 {[%clk 0:00:28.5]} 62. Kf5
{[%clk 0:00:04.4]} 62... e3 {[%clk 0:00:28.7]} 63. Kf4 {[%clk 0:00:04.6]} 63...
e2 {[%clk 0:00:28.9]} 0-1

[Event "*** Titled Tuesday Blitz"]
[Site "Chess.com"]
[Date "2020.04.21"]
[Round "4"]
[White "Noghay"]
[Black "WeAintSurePal"]
[Result "1-0"]
[WhiteElo "2593"]
[BlackElo "2355"]
[TimeControl "180+1"]
[EndTime "10:41:04 PDT"]
[Termination "Noghay won by checkmate"]

1. Nf3 {[%clk 0:03:00.9]} 1... d5 {[%clk 0:02:57]} 2. g3 {[%clk 0:03:00.3]} 2...
Nf6 {[%clk 0:02:56]} 3. Bg2 {[%clk 0:03:00.8]} 3... c6 {[%clk 0:02:55.9]} 4. O-O
{[%clk 0:03:01.3]} 4... Bg4 {[%clk 0:02:55.6]} 5. d3 {[%clk 0:03:01.2]} 5...
Nbd7 {[%clk 0:02:54.6]} 6. Nbd2 {[%clk 0:03:01.7]} 6... e6 {[%clk 0:02:54.4]} 7.
h3 {[%clk 0:02:58.8]} 7... Bh5 {[%clk 0:02:54.1]} 8. e4 {[%clk 0:02:55.7]} 8...
Be7 {[%clk 0:02:51.8]} 9. Qe1 {[%clk 0:02:54.1]} 9... Bxf3 {[%clk 0:02:50.8]}
10. Nxf3 {[%clk 0:02:49.4]} 10... O-O {[%clk 0:02:51.7]} 11. e5 {[%clk
0:02:48.8]} 11... Ne8 {[%clk 0:02:50.9]} 12. Bf4 {[%clk 0:02:46.2]} 12... a5
{[%clk 0:02:44.4]} 13. h4 {[%clk 0:02:45.3]} 13... a4 {[%clk 0:02:44.6]} 14. a3
{[%clk 0:02:45]} 14... Qb6 {[%clk 0:02:42.9]} 15. Qd2 {[%clk 0:02:36.8]} 15...
Rc8 {[%clk 0:02:32.5]} 16. Rfe1 {[%clk 0:02:20.9]} 16... c5 {[%clk 0:02:11.7]}
17. h5 {[%clk 0:02:03.9]} 17... c4 {[%clk 0:02:07.4]} 18. d4 {[%clk 0:01:53.1]}
18... c3 {[%clk 0:01:58.2]} 19. bxc3 {[%clk 0:01:52.5]} 19... Qa5 {[%clk
0:01:58.6]} 20. Rab1 {[%clk 0:01:39.3]} 20... Nb6 {[%clk 0:01:52.7]} 21. Bf1
{[%clk 0:01:27]} 21... Nc4 {[%clk 0:01:40.5]} 22. Bxc4 {[%clk 0:01:21.8]} 22...
Rxc4 {[%clk 0:01:41.4]} 23. Rxb7 {[%clk 0:01:22.1]} 23... Bxa3 {[%clk
0:01:41.5]} 24. Re3 {[%clk 0:00:40.1]} 24... Qa6 {[%clk 0:01:30.6]} 25. Rb1
{[%clk 0:00:39.4]} 25... Be7 {[%clk 0:01:30]} 26. h6 {[%clk 0:00:39.4]} 26... g6
{[%clk 0:01:29.6]} 27. Bg5 {[%clk 0:00:39.7]} 27... Bxg5 {[%clk 0:01:22.9]} 28.
Nxg5 {[%clk 0:00:40.6]} 28... a3 {[%clk 0:01:19.6]} 29. Rf3 {[%clk 0:00:41]}
29... a2 {[%clk 0:01:17.8]} 30. Ra1 {[%clk 0:00:39.3]} 30... Qb5 {[%clk
0:01:13.4]} 31. Qc1 {[%clk 0:00:35.2]} 31... Ra4 {[%clk 0:01:09.8]} 32. Kg2
{[%clk 0:00:35.6]} 32... Ra7 {[%clk 0:00:45.1]} 33. Rd3 {[%clk 0:00:33.8]} 33...
Qb6 {[%clk 0:00:35]} 34. Nf3 {[%clk 0:00:29.5]} 34... f6 {[%clk 0:00:31.6]} 35.
exf6 {[%clk 0:00:25.2]} 35... Nxf6 {[%clk 0:00:32.5]} 36. Ne5 {[%clk 0:00:23.9]}
36... Ne4 {[%clk 0:00:25.9]} 37. f3 {[%clk 0:00:23.6]} 37... Nd6 {[%clk
0:00:22.8]} 38. Re3 {[%clk 0:00:18.6]} 38... Nf5 {[%clk 0:00:22.8]} 39. Rd3
{[%clk 0:00:18]} 39... Rf6 {[%clk 0:00:20.9]} 40. g4 {[%clk 0:00:17.7]} 40...
Nxh6 {[%clk 0:00:19]} 41. Qxh6 {[%clk 0:00:17.2]} 41... Qd8 {[%clk 0:00:18.2]}
42. Rdd1 {[%clk 0:00:14.3]} 42... Rf8 {[%clk 0:00:17.7]} 43. Rh1 {[%clk
0:00:14.5]} 43... Qb6 {[%clk 0:00:17.1]} 44. Rxa2 {[%clk 0:00:13.8]} 44... Rg7
{[%clk 0:00:16.8]} 45. Qe3 {[%clk 0:00:10.5]} 45... Qc7 {[%clk 0:00:17]} 46. Re1
{[%clk 0:00:10.5]} 46... Qd6 {[%clk 0:00:15.8]} 47. Re2 {[%clk 0:00:11.1]} 47...
Rc7 {[%clk 0:00:15.7]} 48. Nd3 {[%clk 0:00:11.5]} 48... Rfc8 {[%clk 0:00:15.9]}
49. Qxe6+ {[%clk 0:00:11.6]} 49... Qxe6 {[%clk 0:00:15.8]} 50. Rxe6 {[%clk
0:00:12.5]} 50... Rxc3 {[%clk 0:00:16.4]} 51. Nc5 {[%clk 0:00:13.2]} 51... Rc4
{[%clk 0:00:15.4]} 52. Ra7 {[%clk 0:00:13.6]} 52... Rxd4 {[%clk 0:00:15.2]} 53.
Nd7 {[%clk 0:00:13.6]} 53... Rxc2+ {[%clk 0:00:15.3]} 54. Kg3 {[%clk 0:00:14.1]}
54... Rc3 {[%clk 0:00:14.6]} 55. Ne5 {[%clk 0:00:14.2]} 55... Kf8 {[%clk
0:00:15.2]} 56. Rf6+ {[%clk 0:00:13.7]} 56... Kg8 {[%clk 0:00:15.9]} 57. Rd6
{[%clk 0:00:13.3]} 57... Rc8 {[%clk 0:00:14.2]} 58. Rdd7 {[%clk 0:00:13.7]}
58... Re8 {[%clk 0:00:13.7]} 59. Rg7+ {[%clk 0:00:14.1]} 59... Kh8 {[%clk
0:00:13.6]} 60. Rxh7+ {[%clk 0:00:14.6]} 60... Kg8 {[%clk 0:00:14.3]} 61. Rag7+
{[%clk 0:00:14.9]} 61... Kf8 {[%clk 0:00:14.8]} 62. Nxg6# {[%clk 0:00:15.8]} 1-0

[Event "*** Titled Tuesday Blitz"]
[Site "Chess.com"]
[Date "2020.04.21"]
[Round "4"]
[White "AlexandraSamaganova"]
[Black "losersgame"]
[Result "1-0"]
[WhiteElo "2122"]
[BlackElo "2341"]
[TimeControl "180+1"]
[EndTime "10:41:07 PDT"]
[Termination "AlexandraSamaganova won by resignation"]

1. c4 {[%clk 0:03:00.9]} 1... b6 {[%clk 0:02:58.6]} 2. Nc3 {[%clk 0:03:00.4]}
2... Bb7 {[%clk 0:02:56.7]} 3. Nf3 {[%clk 0:02:58.4]} 3... e6 {[%clk 0:02:55.2]}
4. e3 {[%clk 0:02:57.5]} 4... f5 {[%clk 0:02:54.3]} 5. d4 {[%clk 0:02:53.8]}
5... Nf6 {[%clk 0:02:53.8]} 6. d5 {[%clk 0:02:49.5]} 6... Bb4 {[%clk 0:02:48.8]}
7. dxe6 {[%clk 0:02:43.7]} 7... Bxc3+ {[%clk 0:02:48.5]} 8. bxc3 {[%clk
0:02:43.4]} 8... dxe6 {[%clk 0:02:49.1]} 9. Qb3 {[%clk 0:02:39.4]} 9... Na6
{[%clk 0:02:41.6]} 10. Be2 {[%clk 0:02:31.7]} 10... O-O {[%clk 0:02:36.6]} 11.
O-O {[%clk 0:02:30.3]} 11... Nc5 {[%clk 0:02:36.3]} 12. Qb4 {[%clk 0:02:18.8]}
12... Qe8 {[%clk 0:02:31.1]} 13. Nd4 {[%clk 0:01:59.6]} 13... Qg6 {[%clk
0:01:57.7]} 14. f3 {[%clk 0:01:55.1]} 14... e5 {[%clk 0:01:54.7]} 15. Nb5 {[%clk
0:01:42.5]} 15... Rf7 {[%clk 0:01:45.2]} 16. e4 {[%clk 0:01:25.5]} 16... fxe4
{[%clk 0:01:43.9]} 17. Be3 {[%clk 0:01:23.7]} 17... Nfd7 {[%clk 0:01:24.6]} 18.
Qb1 {[%clk 0:00:45.1]} 18... exf3 {[%clk 0:00:29.1]} 19. Qxg6 {[%clk 0:00:40.2]}
19... hxg6 {[%clk 0:00:29.2]} 20. Bxf3 {[%clk 0:00:36.8]} 20... Bxf3 {[%clk
0:00:28.7]} 21. Rxf3 {[%clk 0:00:37.2]} 21... Rxf3 {[%clk 0:00:27.7]} 22. gxf3
{[%clk 0:00:38.1]} 22... c6 {[%clk 0:00:25.5]} 23. Nd6 {[%clk 0:00:33.8]} 23...
Rf8 {[%clk 0:00:25.5]} 24. Kg2 {[%clk 0:00:32.8]} 24... Rf6 {[%clk 0:00:25.3]}
25. Nc8 {[%clk 0:00:24]} 25... a5 {[%clk 0:00:22.8]} 26. Bxc5 {[%clk 0:00:21.1]}
26... bxc5 {[%clk 0:00:20.9]} 27. Rd1 {[%clk 0:00:20.1]} 27... Nf8 {[%clk
0:00:19.9]} 28. Rd8 {[%clk 0:00:19.2]} 28... Kh7 {[%clk 0:00:18.9]} 29. Na7
{[%clk 0:00:07.5]} 29... Ne6 {[%clk 0:00:18.5]} 30. Rd7 {[%clk 0:00:04.3]} 30...
Nf4+ {[%clk 0:00:17.8]} 31. Kf2 {[%clk 0:00:04.7]} 31... g5 {[%clk 0:00:16.1]}
32. Ke3 {[%clk 0:00:04.2]} 32... Ng2+ {[%clk 0:00:15.5]} 33. Ke4 {[%clk
0:00:04.5]} 33... Nh4 {[%clk 0:00:14.8]} 34. Kxe5 {[%clk 0:00:03.9]} 34... Nxf3+
{[%clk 0:00:15]} 35. Ke4 {[%clk 0:00:03.4]} 35... g4 {[%clk 0:00:15.2]} 36. Rc7
{[%clk 0:00:01.8]} 36... Re6+ {[%clk 0:00:15]} 37. Kf5 {[%clk 0:00:01.9]} 37...
Rf6+ {[%clk 0:00:14.3]} 38. Kxg4 {[%clk 0:00:02.8]} 38... Ne5+ {[%clk 0:00:14]}
39. Kg3 {[%clk 0:00:03.1]} 39... Nxc4 {[%clk 0:00:13.5]} 40. Nxc6 {[%clk
0:00:02.9]} 40... Nd2 {[%clk 0:00:12.7]} 41. Nd8 {[%clk 0:00:02.5]} 41... Ne4+
{[%clk 0:00:12.6]} 42. Kg2 {[%clk 0:00:02.3]} 42... Rf2+ {[%clk 0:00:12.5]} 43.
Kg1 {[%clk 0:00:03.2]} 43... Rc2 {[%clk 0:00:12.3]} 44. Ne6 {[%clk 0:00:04]}
44... Rxc3 {[%clk 0:00:10.5]} 45. Rxg7+ {[%clk 0:00:03.2]} 45... Kh6 {[%clk
0:00:11]} 46. Rc7 {[%clk 0:00:03.3]} 46... Rc1+ {[%clk 0:00:11]} 47. Kg2 {[%clk
0:00:03.2]} 47... c4 {[%clk 0:00:11.7]} 48. Rc6 {[%clk 0:00:03.1]} 48... Kh7
{[%clk 0:00:10.3]} 49. Nd4 {[%clk 0:00:01.7]} 49... c3 {[%clk 0:00:09.7]} 50.
Kf3 {[%clk 0:00:02.6]} 50... Nd2+ {[%clk 0:00:09.3]} 51. Ke3 {[%clk 0:00:03.2]}
51... Nf1+ {[%clk 0:00:09.2]} 52. Kd3 {[%clk 0:00:04.1]} 52... Rd1+ {[%clk
0:00:07.4]} 53. Kxc3 {[%clk 0:00:04.2]} 53... Rc1+ {[%clk 0:00:07.7]} 54. Nc2
{[%clk 0:00:05.1]} 54... Ne3 {[%clk 0:00:06]} 55. Kd2 {[%clk 0:00:05.5]} 55...
Rxc2+ {[%clk 0:00:02.2]} 56. Rxc2 {[%clk 0:00:06.4]} 56... Nxc2 {[%clk
0:00:02.4]} 57. Kxc2 {[%clk 0:00:07]} 57... Kh6 {[%clk 0:00:02.9]} 58. Kc3
{[%clk 0:00:07.5]} 58... Kh5 {[%clk 0:00:03.8]} 59. Kc4 {[%clk 0:00:08.4]} 59...
Kh4 {[%clk 0:00:04.4]} 60. Kb5 {[%clk 0:00:09.3]} 60... Kh3 {[%clk 0:00:05]} 61.
Kxa5 {[%clk 0:00:09.8]} 1-0

[Event "*** Titled Tuesday Blitz"]
[Site "Chess.com"]
[Date "2020.04.21"]
[Round "4"]
[White "Rud_Makarian"]
[Black "pouya21"]
[Result "1-0"]
[WhiteElo "2645"]
[BlackElo "2791"]
[TimeControl "180+1"]
[EndTime "10:41:09 PDT"]
[Termination "Rud_Makarian won by resignation"]

1. d4 {[%clk 0:03:00.8]} 1... f5 {[%clk 0:02:59.3]} 2. Bg5 {[%clk 0:02:59.4]}
2... h6 {[%clk 0:02:58.6]} 3. Bh4 {[%clk 0:03:00]} 3... g5 {[%clk 0:02:58.7]} 4.
e3 {[%clk 0:02:58.9]} 4... Nf6 {[%clk 0:02:55.5]} 5. Bg3 {[%clk 0:02:59.2]} 5...
d6 {[%clk 0:02:56.1]} 6. Nc3 {[%clk 0:02:56.5]} 6... e6 {[%clk 0:02:49.6]} 7. h4
{[%clk 0:02:56.9]} 7... g4 {[%clk 0:02:47.7]} 8. Bc4 {[%clk 0:02:56.5]} 8... Bg7
{[%clk 0:02:45.1]} 9. Nge2 {[%clk 0:02:56.6]} 9... Nh5 {[%clk 0:02:44.2]} 10.
Nf4 {[%clk 0:02:52.8]} 10... Nxg3 {[%clk 0:02:44.4]} 11. fxg3 {[%clk 0:02:53.7]}
11... d5 {[%clk 0:02:44.7]} 12. Bb3 {[%clk 0:02:47.9]} 12... O-O {[%clk
0:02:43.8]} 13. Nce2 {[%clk 0:02:47.6]} 13... c6 {[%clk 0:02:36.8]} 14. c4
{[%clk 0:02:46.8]} 14... Qd6 {[%clk 0:02:36.2]} 15. O-O {[%clk 0:02:41.7]} 15...
Nd7 {[%clk 0:02:35.7]} 16. c5 {[%clk 0:02:23.6]} 16... Nxc5 {[%clk 0:02:24.3]}
17. dxc5 {[%clk 0:02:22.9]} 17... Qxc5 {[%clk 0:02:25.2]} 18. Qd3 {[%clk
0:01:29]} 18... Bxb2 {[%clk 0:02:10.6]} 19. Rab1 {[%clk 0:01:29.3]} 19... Bg7
{[%clk 0:02:09.9]} 20. Nd4 {[%clk 0:01:28.4]} 20... Qd6 {[%clk 0:02:01.7]} 21.
Nh5 {[%clk 0:01:21.8]} 21... Bd7 {[%clk 0:01:25.8]} 22. Ne2 {[%clk 0:01:14.1]}
22... Bh8 {[%clk 0:01:18.4]} 23. Nef4 {[%clk 0:01:09.3]} 23... Be8 {[%clk
0:01:14.5]} 24. e4 {[%clk 0:00:58.5]} 24... fxe4 {[%clk 0:01:12.3]} 25. Qe2
{[%clk 0:00:58.5]} 25... e5 {[%clk 0:01:03.4]} 26. Qxg4+ {[%clk 0:00:58.7]}
26... Kh7 {[%clk 0:01:03.6]} 27. Bxd5 {[%clk 0:00:22.1]} 27... cxd5 {[%clk
0:00:48.9]} 28. Rxb7+ {[%clk 0:00:22]} 28... Rf7 {[%clk 0:00:49.5]} 29. Ne6
{[%clk 0:00:10.7]} 29... Qxe6 {[%clk 0:00:28.6]} 30. Rfxf7+ {[%clk 0:00:04.1]}
30... Qxf7 {[%clk 0:00:27]} 31. Rxf7+ {[%clk 0:00:02.6]} 31... Bxf7 {[%clk
0:00:27.9]} 32. Qf5+ {[%clk 0:00:03.1]} 32... Kg8 {[%clk 0:00:27.8]} 33. Qg4+
{[%clk 0:00:02.8]} 33... Kf8 {[%clk 0:00:27.5]} 34. Qf5 {[%clk 0:00:02.5]} 34...
Rd8 {[%clk 0:00:22.9]} 35. Qh7 {[%clk 0:00:02.8]} 35... Ke7 {[%clk 0:00:21.6]}
36. Qxh6 {[%clk 0:00:02.8]} 36... d4 {[%clk 0:00:20.5]} 37. Qg5+ {[%clk
0:00:03]} 37... Ke8 {[%clk 0:00:19.7]} 38. Qh6 {[%clk 0:00:02.5]} 38... Ke7
{[%clk 0:00:19.9]} 39. Qg5+ {[%clk 0:00:03.1]} 39... Ke6 {[%clk 0:00:20.4]} 40.
Qh6+ {[%clk 0:00:03.3]} 40... Kd5 {[%clk 0:00:20.5]} 41. Qg5 {[%clk 0:00:03.5]}
41... Rc8 {[%clk 0:00:18.7]} 42. Qf5 {[%clk 0:00:03.8]} 42... Rc7 {[%clk
0:00:17.7]} 43. Nf6+ {[%clk 0:00:02.5]} 43... Bxf6 {[%clk 0:00:17.4]} 44. Qxf6
{[%clk 0:00:03.4]} 44... d3 {[%clk 0:00:18.3]} 45. Qd8+ {[%clk 0:00:03.6]} 45...
Kc6 {[%clk 0:00:17.8]} 46. g4 {[%clk 0:00:03.4]} 46... Rd7 {[%clk 0:00:17]} 47.
Qc8+ {[%clk 0:00:03.8]} 47... Kd6 {[%clk 0:00:17.5]} 48. Qb8+ {[%clk 0:00:04.1]}
48... Ke6 {[%clk 0:00:17.3]} 49. Qb3+ {[%clk 0:00:03.4]} 49... Kf6 {[%clk
0:00:17.4]} 50. g5+ {[%clk 0:00:03.8]} 50... Kg7 {[%clk 0:00:17.2]} 51. Qb5
{[%clk 0:00:04.3]} 51... Be6 {[%clk 0:00:17]} 52. Qxe5+ {[%clk 0:00:04.1]} 52...
Kh7 {[%clk 0:00:16.5]} 53. Qxe6 {[%clk 0:00:04.3]} 53... Rd8 {[%clk 0:00:16.6]}
54. Qxe4+ {[%clk 0:00:04.5]} 54... Kh8 {[%clk 0:00:16]} 55. Qe5+ {[%clk
0:00:04.8]} 55... Kg8 {[%clk 0:00:16.3]} 56. Qe6+ {[%clk 0:00:04.9]} 1-0